bitfinex/quotes_ETHUSD_20260314
["timestamp","ask_amount","ask_price","bid_price","bid_amount"]
[1773490986297,0.45847322,2076.9,2076.5,0.46942594]
[1773490986630,2.26747322,2077.1,2076.6,0.51758157]
[1773490986886,0.45847322,2077.0,2076.6,0.51758157]
[1773490987190,0.45847322,2076.9,2076.6,0.46942594]
[1773490987391,0.45847322,2076.9,2076.4,1.67338794]
[1773490987571,2.5606418,2076.8,2076.4,1.67338794]
[1773490987896,0.45847322,2076.8,2076.4,1.67338794]
[1773490988186,0.45847322,2076.9,2076.6,1.20389097]
[1773490988353,0.45847322,2077.3,2076.7,0.46942594]
[1773490988550,0.46047322,2077.4,2076.9,0.46942594]
[1773490988754,0.46047322,2077.4,2076.7,0.51757926]
[1773490990375,0.46047322,2077.4,2076.8,1.67320097]
[1773490991394,0.46047322,2077.4,2077.0,0.001]
[1773490991888,0.002,2077.2,2077.0,0.001]
[1773490992284,0.002,2077.2,2077.0,1.20465912]
[1773490992793,0.46047322,2077.2,2077.0,1.20465912]
[1773490993692,0.002,2077.2,2077.0,1.67408506]
[1773490993881,0.002,2077.2,2077.0,0.47042594]
[1773490994380,0.002,2077.2,2077.0,0.001]
[1773490994773,0.46047322,2077.2,2077.0,0.001]
[1773490998204,0.002,2077.2,2077.0,0.47042594]
[1773490998502,0.002,2077.2,2077.0,0.5185723]
[1773490998701,0.46047322,2077.2,2076.8,0.001]
[1773491000711,0.46047322,2077.2,2076.8,1.20477503]
[1773491001597,0.04814651,2077.1,2076.8,1.20477503]
[1773491001794,0.46744436,2077.0,2076.8,1.20477503]
[1773491004610,0.46944436,2077.0,2076.8,1.20477503]
[1773491007214,0.002,2077.0,2076.8,1.68898034]
[1773491007509,0.46944436,2077.0,2076.8,1.20477503]
[1773491008514,0.46944436,2077.0,2076.8,0.001]
[1773491010414,0.002,2077.0,2076.8,0.48520531]
[1773491010990,0.46944436,2077.0,2076.8,0.001]
[1773491015226,0.002,2077.0,2076.8,0.48520531]
[1773491015430,0.002,2077.0,2076.8,0.53335631]
[1773491016133,0.002,2077.0,2076.9,1.20371707]
[1773491023811,0.002,2077.4,2077.0,0.49050508]
[1773491025328,0.002,2077.4,2077.2,0.51508075]
[1773491026329,0.002,2077.5,2077.2,0.51408075]
[1773491027708,0.002,2077.5,2077.3,1.71756604]
[1773491037574,0.002,2077.5,2077.3,1.76570545]
[1773491041243,0.002,2077.5,2077.4,0.51408075]
[1773491045566,0.002,2077.5,2077.4,1.71750811]
[1773491045950,0.002,2077.5,2077.3,0.56322016]
[1773491046271,0.002,2077.5,2077.3,1.76669693]
[1773491048849,0.002,2077.5,2077.4,0.60506483]
[1773491051351,0.002,2077.5,2077.4,1.80849219]
[1773491055253,0.002,2077.5,2077.4,1.80949219]
[1773491057962,0.002,2077.5,2077.4,0.60606483]
[1773491058986,0.002,2077.5,2077.4,0.001]
[1773491066095,0.002,2077.7,2077.4,0.001]
[1773491066598,0.002,2077.7,2077.3,0.001]
[1773491066792,0.76249439,2077.7,2077.1,0.001]
[1773491066986,0.76249439,2077.7,2077.6,0.001]
[1773491067187,0.76249439,2077.7,2077.1,0.001]
[1773491067388,0.002,2077.3,2077.1,0.001]
[1773491076206,0.002,2077.3,2077.1,0.60649991]
[1773491078110,0.002,2077.3,2077.1,1.85822132]
[1773491087822,0.002,2077.3,2077.2,0.60549991]
[1773491090630,0.002,2077.3,2077.1,1.25272141]
[1773491090931,0.002,2077.3,2077.1,1.85822132]
[1773491093301,0.002,2077.3,2077.1,1.81007728]
[1773491096629,0.002,2077.3,2077.2,0.60549991]
[1773491101811,0.002,2077.3,2077.1,1.81007728]
[1773491102010,0.002,2077.5,2077.2,0.60449991]
[1773491103238,0.002,2077.5,2077.4,0.001]
[1773491119738,0.002,2077.5,2077.4,0.62865893]
[1773491121532,0.002,2077.5,2077.4,0.001]
[1773491126056,0.002,2077.5,2077.4,0.62865893]
[1773491126635,0.002,2077.5,2077.4,0.001]
[1773491129346,0.002,2077.5,2077.4,0.62550106]
[1773491131663,0.002,2077.5,2077.4,1.82892842]
[1773491136061,0.002,2077.5,2077.4,0.001]
[1773491136269,0.002,2077.5,2077.1,1.82907679]
[1773491136945,0.002,2077.5,2077.1,0.62550106]
[1773491137263,0.002,2077.5,2077.1,0.001]
[1773491137663,0.002,2077.5,2077.1,1.20460059]
[1773491139536,0.002,2077.5,2077.3,0.001]
[1773491142869,0.002,2077.5,2077.3,0.62550106]
[1773491143761,0.002,2077.5,2077.4,0.67263815]
[1773491147362,0.002,2077.5,2077.3,0.001]
[1773491150859,0.002,2077.5,2077.3,0.62550106]
[1773491154167,0.002,2077.5,2077.4,0.62450106]
[1773491160455,0.002,2077.5,2077.3,0.001]
[1773491170871,0.002,2077.5,2077.1,1.82910202]
[1773491171698,0.76286143,2077.5,2077.0,0.0011]
[1773491172383,1.20342736,2077.4,2077.0,0.0011]
[1773491175869,2.97942736,2077.4,2077.2,0.001]
[1773491176064,0.002,2077.3,2077.0,0.0011]
[1773491176813,0.002,2077.3,2077.0,0.62560106]
[1773491179101,1.728,2077.4,2077.0,1.82924959]
[1773491180197,2.93142839,2077.4,2077.0,0.62560106]
[1773491187910,2.93142839,2077.4,2077.2,0.0011]
[1773491188079,2.93142839,2077.4,2077.0,0.62560106]
[1773491188707,0.001,2077.2,2077.0,0.62560106]
[1773491195086,0.001,2077.2,2077.1,0.62450106]
[1773491195813,0.002,2077.5,2077.1,0.62450106]
[1773491197204,0.002,2077.5,2077.2,1.82804429]
[1773491201716,0.002,2077.5,2077.2,1.82914429]
[1773491201920,0.001,2077.3,2077.2,1.82914429]
[1773491203438,0.001,2077.3,2077.1,0.45331328]
[1773491220615,0.38033639,2077.3,2077.0,1.20474185]
[1773491221236,0.38033639,2077.3,2077.0,0.46846344]
[1773491224439,1.58382957,2077.3,2077.0,0.0011]
[1773491224840,0.38033639,2077.3,2077.0,0.0011]
[1773491225220,0.38033639,2077.3,2077.2,0.001]
[1773491225539,0.002,2077.1,2077.0,0.0011]
[1773491236843,0.002,2077.1,2077.0,0.46846344]
[1773491242849,0.002,2077.1,2077.0,1.67212256]
[1773491243546,0.002,2077.1,2076.6,4.81555263]
[1773491243547,0.37409143,2077.1,2076.1,0.0011]
[1773491243733,0.37409143,2077.1,2076.1,4.8165599]
[1773491243734,0.37209143,2076.9,2076.1,4.8165599]
[1773491244228,0.37209143,2076.9,2076.2,0.04816491]
[1773491245351,0.37205803,2076.8,2076.3,1.20406492]
[1773491248529,1.20375939,2076.9,2076.5,0.001]
[1773491248728,0.37192821,2076.8,2076.5,0.001]
[1773491250427,0.37192821,2076.8,2076.5,1.20494895]
[1773491250626,0.37192821,2076.8,2076.5,0.001]
[1773491253435,1.57746069,2077.0,2076.5,0.48224679]
[1773491253645,1.57743502,2077.0,2076.5,0.48224679]
[1773491254158,0.37177414,2076.9,2076.5,0.48224679]
[1773491254865,0.37177414,2076.9,2076.6,0.48234679]
[1773491258138,0.37177414,2076.9,2076.5,1.20490803]
[1773491258139,0.37177414,2076.9,2076.7,0.0011]
[1773491258340,0.37177414,2076.9,2076.5,1.68619292]
[1773491259176,0.43014932,2076.8,2076.5,1.68619292]
[1773491259335,0.43014932,2076.8,2076.6,0.0011]
[1773491260475,0.43014932,2076.8,2076.7,0.0011]
[1773491260634,0.43014932,2076.8,2076.6,0.0011]
[1773491260965,0.001,2076.7,2076.6,0.0011]
[1773491269656,0.001,2076.7,2076.5,1.68619574]
[1773491269858,0.001,2076.7,2076.6,0.0011]
[1773491275873,0.001,2076.7,2076.6,0.461836]
[1773491276075,1.2057053,2077.0,2076.7,0.460736]
[1773491276256,1.2057053,2077.0,2076.7,0.461836]
[1773491276658,0.002,2077.0,2076.7,0.461836]
[1773491277247,0.002,2077.0,2076.9,0.460736]
[1773491281071,0.002,2077.0,2076.8,0.460736]
[1773491281274,0.002,2077.0,2076.8,0.461836]
[1773491281651,0.002,2077.0,2076.8,0.460736]
[1773491282282,0.002,2077.0,2076.9,0.0011]
[1773491282476,0.002,2077.0,2076.9,0.461836]
[1773491283686,0.002,2077.0,2076.9,0.0011]
[1773491288592,0.002,2077.0,2076.8,0.460736]
[1773491288792,0.002,2077.0,2076.9,0.0011]
[1773491293683,0.45799405,2077.0,2076.9,0.0011]
[1773491293993,0.45599405,2076.9,2076.5,0.001]
[1773491294171,0.50414752,2076.9,2076.5,0.001]
[1773491295503,0.50414752,2076.9,2076.0,0.461836]
[1773491295504,0.45599405,2076.5,2076.0,0.461836]
[1773491295797,0.45599405,2076.3,2076.0,0.0011]
[1773491296791,0.45599405,2076.3,2075.9,0.461836]
[1773491296792,0.45599405,2076.3,2076.2,0.001]
[1773491297101,1.20400693,2076.4,2075.9,0.461836]
[1773491297273,2.98000693,2076.4,2075.9,0.461836]
[1773491297795,3.43600098,2076.4,2075.9,0.461836]
[1773491298101,3.43600098,2076.4,2075.9,0.51000787]
[1773491300711,3.43600098,2076.4,2075.9,0.461836]
[1773491301594,0.45518614,2076.3,2075.9,0.461836]
[1773491302380,1.20412291,2076.2,2075.9,0.461836]
[1773491308429,1.20412291,2076.2,2076.1,0.0011]
[1773491308730,0.45518614,2076.1,2075.8,0.0011]
[1773491308922,0.50333961,2076.1,2075.6,0.001]
[1773491309508,0.50333961,2076.1,2075.6,0.45890078]
[1773491310103,1.65942506,2076.0,2075.6,0.45890078]
[1773491312929,0.45518614,2075.9,2075.4,0.45900078]
[1773491313506,0.45518614,2075.9,2075.4,0.0011]
[1773491314308,0.45518614,2075.7,2075.3,0.45790078]
[1773491316637,1.65962537,2075.7,2075.3,0.45790078]
[1773491318931,0.45518614,2075.6,2075.3,0.45790078]
[1773491319109,0.45518614,2075.6,2075.2,3.34766339]
[1773491320038,0.45518614,2075.6,2075.5,0.0011]
[1773491320332,0.45518614,2075.6,2075.2,3.34766339]
[1773491320542,0.45518614,2075.6,2075.3,0.0011]
[1773491320754,1.65969667,2075.6,2075.3,0.0011]
[1773491322254,0.45518614,2075.5,2075.1,0.45790078]
[1773491323053,1.66062715,2075.7,2075.2,0.45790078]
[1773491323348,1.20541539,2075.7,2075.2,0.5060889]
[1773491323543,1.66060153,2075.7,2075.2,0.5060889]
[1773491325437,1.66060153,2075.7,2075.3,0.45790078]
[1773491325736,2.99154872,2075.7,2075.3,0.45790078]
[1773491332445,2.99154872,2075.7,2075.3,0.45900078]
[1773491332638,0.001,2075.5,2075.3,0.45900078]
[1773491334860,0.001,2075.5,2075.4,0.51806085]
[1773491335072,2.53636258,2075.7,2075.5,0.46987737]
[1773491335253,1.33194719,2075.7,2075.5,0.46987737]
[1773491338773,1.79875955,2075.7,2075.3,0.47097737]
[1773491340948,1.79875955,2075.7,2075.3,1.67561767]
[1773491342668,1.79875955,2075.7,2075.4,0.46987737]
[1773491344277,0.001,2075.5,2075.4,0.46987737]
[1773491351180,0.001,2075.5,2075.4,1.67446443]
[1773491351380,0.001,2075.5,2075.4,1.72264791]
[1773491352289,0.001,2075.5,2075.4,0.51806085]
[1773491353556,0.001,2075.5,2075.4,0.46987737]
[1773491356193,0.001,2075.5,2075.4,0.47097737]
[1773491358591,0.46681236,2075.8,2075.5,0.46987737]
[1773491358814,0.46681236,2075.7,2075.4,0.0011]
[1773491364898,0.46681236,2075.7,2075.4,0.51273425]
[1773491365194,1.20435905,2075.8,2075.4,0.51273425]
[1773491365765,1.68895316,2075.8,2075.4,0.51273425]
[1773491365973,1.68897124,2075.8,2075.4,0.51273425]
[1773491367902,0.48459411,2075.7,2075.4,0.51273425]
[1773491368072,0.48459411,2075.7,2075.6,0.0011]
[1773491368402,0.48559411,2075.6,2075.4,0.0011]
[1773491369997,0.001,2075.6,2075.4,0.0011]
[1773491376711,0.001,2075.6,2075.4,0.51273425]
[1773491393239,0.001,2075.6,2075.4,0.0011]
[1773491393240,0.49619811,2075.6,2075.4,0.0011]
[1773491394336,0.49619811,2075.6,2075.1,0.53087669]
[1773491395425,0.49519811,2075.5,2075.1,1.73559185]
[1773491395927,0.49519811,2075.5,2075.1,1.20581516]
[1773491396112,0.49519811,2075.5,2075.1,0.0011]
[1773491398432,0.49519811,2075.4,2075.1,0.0011]
[1773491401138,0.49519811,2075.4,2075.1,0.53087669]
[1773491404912,0.49519811,2075.4,2075.3,0.0011]
[1773491405128,0.49619811,2075.4,2075.3,0.0011]
[1773491409539,0.001,2075.4,2075.3,0.53087669]
[1773491415443,0.001,2075.6,2075.4,0.52977669]
[1773491415817,0.001,2075.6,2075.4,0.57796017]
[1773491416426,0.001,2075.6,2075.5,0.52977669]
[1773491424259,0.001,2075.6,2075.3,1.71917651]
[1773491425851,0.001,2075.6,2075.4,0.51347676]
[1773491428462,0.001,2075.6,2075.5,0.0011]
[1773491441268,0.001,2075.6,2075.5,1.20562902]
[1773491441472,0.001,2075.6,2075.5,0.0011]
[1773491445560,0.001,2075.6,2075.5,0.51457676]
[1773491461711,1.25249486,2075.9,2075.6,0.53702359]
[1773491461891,0.52758727,2076.0,2075.6,0.53702359]
[1773491462995,0.52758727,2076.0,2075.6,0.58520242]
[1773491463204,0.52758727,2076.0,2075.6,0.53702359]
[1773491463497,0.52758727,2076.0,2075.7,0.53702359]
[1773491464368,1.20418765,2076.1,2075.7,0.53702359]
[1773491465692,1.73177492,2076.1,2075.7,0.53702359]
[1773491467570,0.52758727,2076.0,2075.7,0.53702359]
[1773491470910,0.52758727,2076.0,2075.7,0.5852001]
[1773491472374,1.78090744,2076.2,2075.7,1.78960098]
[1773491472990,1.78090744,2076.2,2075.8,0.53702359]
[1773491475499,0.52758727,2076.1,2075.8,0.53702359]
[1773491476075,0.52758727,2076.1,2075.8,0.53812359]
[1773491476275,0.001,2076.0,2075.8,0.53812359]
[1773491482309,0.001,2076.0,2075.8,0.0011]
[1773491486111,0.001,2076.0,2075.8,0.53784326]
[1773491486283,0.001,2076.0,2075.9,0.04817187]
[1773491488398,0.001,2076.0,2075.8,0.58601745]
[1773491497740,0.001,2076.0,2075.8,1.7421709]
[1773491498830,0.001,2076.0,2075.9,0.04817187]
[1773491502743,0.001,2076.0,2075.9,0.58491513]
[1773491512229,0.001,2076.0,2075.9,0.04817187]
[1773491512538,0.53112357,2076.0,2075.9,0.04817187]
[1773491517039,0.53112357,2076.0,2075.8,0.04927419]
[1773491520976,0.53112357,2076.0,2075.6,0.76268124]
[1773491521276,0.53112357,2076.0,2075.1,0.0011]
[1773491521277,0.53012357,2075.7,2075.1,0.0011]
[1773491521476,0.53012357,2075.5,2074.6,0.93036382]
[1773491521656,0.53012357,2075.3,2074.6,0.93606382]
[1773491522552,0.53012357,2075.2,2074.6,0.93606382]
[1773491522753,0.53012357,2075.2,2074.6,0.93036382]
[1773491523063,0.53012357,2075.0,2074.6,0.93036382]
[1773491523957,0.53012357,2075.0,2074.6,2.1354125]
[1773491525176,0.53012357,2074.9,2074.8,0.0011]
[1773491531880,0.53012357,2074.9,2074.8,0.0068]
[1773491532474,0.53012357,2075.3,2074.8,0.0068]
[1773491532678,0.53012357,2075.3,2074.9,0.0057]
[1773491534490,0.53012357,2075.3,2074.9,1.21057734]
[1773491534990,0.59035582,2075.3,2074.9,1.21057734]
[1773491537085,0.59035582,2075.3,2074.9,0.0057]
[1773491537286,0.53012357,2075.3,2074.9,0.54508514]
[1773491537497,0.53012357,2075.3,2075.0,0.0057]
[1773491537989,0.001,2075.1,2075.0,0.0057]
[1773491538158,0.53012357,2075.2,2074.9,0.54368514]
[1773491538371,0.53012357,2075.2,2075.0,0.0057]
[1773491539368,0.53012357,2075.2,2075.0,1.21051927]
[1773491539569,0.53012357,2075.2,2075.0,1.20621927]
[1773491540686,0.53012357,2075.2,2075.0,0.0014]
[1773491542096,0.53012357,2075.2,2074.9,1.20483262]
[1773491542297,0.53012357,2075.2,2075.0,0.0057]
[1773491550402,0.53012357,2075.2,2075.0,0.0068]
[1773491551101,0.53012357,2075.2,2074.8,0.0011]
[1773491552506,0.53012357,2075.2,2074.8,0.52470204]
[1773491555108,0.53012357,2075.2,2074.8,1.72958975]
[1773491555884,0.53012357,2075.2,2074.8,1.20598771]
[1773491557723,0.53012357,2075.2,2074.8,1.72958975]
[1773491559363,0.53012357,2075.2,2074.9,0.52360204]
[1773491560759,0.53012357,2075.2,2074.8,0.52470204]
[1773491561260,0.55784259,2075.1,2074.8,0.0011]
[1773491561469,0.55784259,2075.1,2074.7,0.0011]
[1773491562344,0.55784259,2075.0,2074.7,0.0011]
[1773491566266,0.55784259,2075.0,2074.9,0.0011]
[1773491566465,0.55884259,2075.0,2074.9,0.0011]
[1773491574361,0.61908355,2075.0,2074.9,0.0011]
[1773491575182,1.82390282,2075.0,2074.9,0.0011]
[1773491575353,0.61908355,2075.0,2074.9,0.0011]
[1773491576578,1.82390282,2075.0,2074.9,0.0011]
[1773491577580,0.52914476,2074.9,2074.7,0.0011]
[1773491578157,0.52914476,2074.9,2074.6,0.93146382]
[1773491578158,0.52914476,2074.9,2074.6,0.85744643]
[1773491578361,0.52914476,2074.9,2074.5,0.0011]
[1773491578362,0.52914476,2074.8,2074.4,0.0011]
[1773491578578,0.52914476,2074.8,2074.1,0.54782366]
[1773491578784,0.52914476,2074.7,2074.1,0.54782366]
[1773491579095,0.52914476,2074.7,2074.1,1.75315963]
[1773491579703,1.73419633,2074.6,2074.5,0.0011]
[1773491579867,1.20505157,2074.6,2074.1,1.75315963]
[1773491580187,0.52914476,2074.5,2074.1,1.20533597]
[1773491582062,0.52914476,2074.4,2074.0,1.75321554]
[1773491582876,0.52914476,2074.4,2074.0,1.75322339]
[1773491583084,0.52914476,2074.4,2074.0,1.74842339]
[1773491583693,0.52914476,2074.4,2073.9,1.75324658]
[1773491584303,0.52914476,2074.3,2073.9,1.75324658]
[1773491585122,0.52914476,2074.3,2073.8,1.20547124]
[1773491585291,0.52914476,2074.3,2073.5,0.54782366]
[1773491585818,0.52914476,2074.0,2073.5,0.54782366]
[1773491586177,1.20543572,2074.0,2073.5,1.7535058]
[1773491586381,0.52914476,2073.9,2073.5,1.7535058]
[1773491589382,1.73453277,2074.1,2073.6,0.54782366]
[1773491589611,0.52914476,2074.1,2073.6,0.57204765]
[1773491590882,0.52914476,2074.1,2073.7,0.0011]
[1773491591211,0.52914476,2074.1,2073.8,0.54782366]
[1773491593307,1.7344904,2074.1,2073.7,0.0011]
[1773491593516,0.52914476,2074.0,2073.7,0.0011]
[1773491593919,0.52914476,2073.9,2073.7,0.0011]
[1773491597201,1.26572059,2074.0,2073.7,0.54892366]
[1773491597599,1.79486535,2074.0,2073.7,0.54892366]
[1773491598017,1.26572059,2074.0,2073.7,0.0011]
[1773491598225,0.52914476,2073.9,2073.7,0.0011]
[1773491599113,1.20537633,2074.1,2073.7,0.54892366]
[1773491599415,0.58941476,2074.0,2073.7,0.0011]
[1773491603528,0.58941476,2074.0,2073.9,0.0011]
[1773491603701,0.58941476,2074.0,2073.7,0.0011]
[1773491603702,0.5009428,2073.9,2073.7,0.0011]
[1773491603900,0.5019428,2073.8,2073.7,0.0011]
[1773491605629,0.5019428,2073.8,2073.5,0.0011]
[1773491605996,0.5019428,2073.8,2073.5,0.51915045]
[1773491606499,0.001,2073.8,2073.5,0.51915045]
[1773491609232,0.001,2073.8,2073.6,1.20563271]
[1773491609636,0.5019428,2073.8,2073.6,1.20563271]
[1773491610010,0.001,2073.8,2073.6,1.72368316]
[1773491610330,0.001,2073.8,2073.6,1.20563271]
[1773491610639,0.5019428,2073.8,2073.5,1.20674856]
[1773491611316,0.5019428,2073.8,2073.5,0.0011]
[1773491613634,0.5019428,2073.8,2073.2,0.0011]
[1773491613635,0.5009428,2073.6,2073.2,0.0011]
[1773491614320,0.5009428,2073.6,2073.2,1.20695992]
[1773491614920,0.5009428,2073.6,2073.2,1.72501037]
[1773491615837,0.5009428,2073.6,2073.2,1.20695992]
[1773491616134,0.5009428,2073.6,2073.4,0.0011]
[1773491617410,0.5009428,2073.5,2073.4,0.0011]
[1773491619044,0.5009428,2073.5,2073.2,0.0011]
[1773491619045,0.5009428,2073.5,2073.2,0.51915045]
[1773491619418,0.5009428,2073.5,2073.2,0.0011]
[1773491620416,0.5009428,2073.4,2073.2,0.0011]
[1773491622447,0.5009428,2073.3,2073.1,0.0011]
[1773491622744,0.5009428,2073.3,2072.9,0.0011]
[1773491622745,0.5009428,2073.2,2072.9,0.0011]
[1773491625052,0.5009428,2073.1,2072.6,0.51805045]
[1773491625347,0.5009428,2073.1,2072.2,1.20644725]
[1773491625348,0.56123315,2073.3,2072.8,0.51805045]
[1773491625956,0.5009428,2073.2,2072.8,0.51805045]
[1773491626630,0.5009428,2073.2,2072.5,0.51805045]
[1773491626941,0.06029035,2073.3,2072.7,0.51805045]
[1773491628158,0.5009428,2073.2,2072.7,0.51805045]
[1773491628523,0.5009428,2073.2,2073.1,0.0011]
[1773491628729,0.57575961,2073.3,2073.1,0.0011]
[1773491629853,0.57575961,2073.3,2073.1,0.54675037]
[1773491629854,0.06029035,2073.3,2073.1,0.54675037]
[1773491631340,0.06029035,2073.3,2073.1,0.0011]
[1773491631841,0.55711874,2073.3,2073.1,0.0011]
[1773491639554,0.06029035,2073.3,2073.1,0.0011]
[1773491640870,0.06029035,2073.3,2073.1,0.51296013]
[1773491641047,0.001,2073.4,2073.1,0.51296013]
[1773491641249,0.06128745,2073.4,2073.1,0.51296013]
[1773491645162,0.06128745,2073.4,2073.2,0.51186013]
[1773491645368,0.001,2073.4,2073.2,0.51186013]
[1773491647775,0.06028454,2073.5,2073.3,0.51186013]
[1773491648080,2.52979957,2073.7,2073.3,0.51186013]
[1773491648081,0.24297118,2073.7,2073.3,0.51186013]
[1773491648279,1.70338435,2073.8,2073.3,0.51186013]
[1773491649181,1.20655596,2073.8,2073.3,0.51186013]
[1773491649375,0.49682839,2073.7,2073.3,0.51186013]
[1773491651182,0.06028163,2073.6,2073.3,0.51186013]
[1773491651985,1.76274598,2073.6,2073.3,0.51186013]
[1773491652163,0.49682839,2073.5,2073.2,0.51186013]
[1773491652370,0.06028745,2073.4,2073.2,0.51186013]
[1773491656483,0.06028745,2073.4,2073.1,0.51296013]
[1773491659793,0.55711584,2073.4,2073.1,0.0011]
[1773491660503,0.55711584,2073.4,2073.1,0.51296013]
[1773491661608,0.55711584,2073.4,2073.1,0.0011]
[1773491661780,1.76287332,2073.4,2073.1,0.0011]
[1773491661976,0.50856934,2073.3,2072.9,0.0011]
[1773491662189,0.50856934,2073.1,2072.9,0.0011]
[1773491663098,0.50856934,2073.3,2072.9,0.0011]
[1773491663299,0.5688626,2073.2,2072.9,0.0011]
[1773491664694,0.5688626,2073.2,2073.1,0.0011]
[1773491664869,0.5698626,2073.2,2073.1,0.0011]
[1773491665799,0.5698626,2073.2,2072.9,0.0011]
[1773491666502,0.06129326,2073.2,2072.9,0.5196009]
[1773491666795,0.001,2073.2,2072.9,0.5196009]
[1773491667000,0.001,2073.2,2072.9,1.72562428]
[1773491670205,0.001,2073.2,2073.0,0.5185009]
[1773491671204,0.001,2073.2,2072.9,1.20712338]
[1773491671384,0.001,2073.2,2072.9,1.72562428]
[1773491673907,0.50956934,2073.2,2072.9,1.72562428]
[1773491674109,0.06029617,2073.1,2072.9,0.5196009]
[1773491676513,0.06029617,2073.1,2072.9,1.72563479]
[1773491676883,0.001,2073.0,2072.9,1.72563479]
[1773491680712,0.50956934,2073.2,2072.9,1.72563479]
[1773491682614,0.03603149,2073.1,2072.9,1.72563479]
[1773491683697,0.03603149,2073.1,2072.9,0.5196009]
[1773491687528,0.03603149,2073.1,2072.9,1.72563717]
[1773491688726,0.001,2073.0,2072.8,0.5185009]
[1773491689397,0.001,2073.0,2072.8,1.72459893]
[1773491692431,0.001,2073.0,2072.9,0.50228474]
[1773491694624,0.52626772,2072.9,2072.6,1.20731378]
[1773491694821,0.001,2073.0,2072.7,0.50228474]
[1773491695329,0.001,2073.0,2072.7,0.55053098]
[1773491696446,0.001,2073.5,2072.9,0.50228474]
[1773491696626,0.52726772,2073.8,2073.4,0.50228474]
[1773491696627,0.03703149,2073.8,2073.4,0.50228474]
[1773491696815,0.001,2073.8,2073.4,0.50228474]
[1773491697015,0.03703149,2073.8,2073.4,0.50228474]
[1773491699332,0.03703149,2073.8,2073.5,1.20569086]
[1773491699536,0.03703149,2073.8,2073.6,0.50228474]
[1773491701829,0.52626772,2073.7,2072.9,1.20709904]
[1773491702032,0.52626772,2073.5,2072.9,1.70938378]
[1773491702229,0.52626772,2073.3,2072.9,1.70938378]
[1773491702629,0.52626772,2073.3,2072.9,0.50338474]
[1773491702839,0.52626772,2073.3,2072.9,1.70942416]
[1773491703850,0.56229921,2073.3,2072.9,1.70942416]
[1773491704048,0.52626772,2073.2,2072.9,0.0011]
[1773491706126,0.52626772,2073.1,2072.9,0.0011]
[1773491714977,0.52626772,2073.0,2072.9,0.0011]
[1773491715123,0.56229921,2073.2,2072.6,0.50338474]
[1773491715442,0.56229921,2073.1,2072.6,0.50338474]
[1773491717258,0.52626772,2073.0,2072.6,1.70957107]
[1773491717859,0.52626772,2073.0,2072.6,1.70959207]
[1773491719331,0.52626772,2073.0,2072.6,1.20730733]
[1773491719755,0.52626772,2073.0,2072.6,1.70959207]
[1773491723459,1.24197466,2073.1,2072.6,1.70959207]
[1773491723460,0.53460558,2072.9,2072.6,1.7095903]
[1773491723865,0.53460558,2072.9,2072.6,0.50338474]
[1773491724373,0.53460558,2072.9,2072.6,0.0011]
[1773491724596,0.53460558,2072.9,2072.8,0.0011]
[1773491724740,0.57063707,2072.9,2072.8,0.0011]
[1773491724944,0.57063707,2072.9,2072.6,0.0011]
[1773491724945,1.24209304,2072.9,2072.6,0.0011]
[1773491725171,0.53460558,2072.8,2072.6,0.0011]
[1773491728482,0.57063707,2072.8,2072.6,0.0011]
[1773491729267,0.53460558,2072.8,2072.6,0.0011]
[1773491730776,1.74060044,2073.0,2072.6,0.0011]
[1773491730947,0.53460558,2072.9,2072.6,0.52385243]
[1773491732174,0.53460558,2072.8,2072.6,0.0011]
[1773491732862,0.03603149,2072.7,2072.6,0.0011]
[1773491733445,0.57063707,2072.7,2072.6,0.0011]
[1773491741666,0.53460558,2072.6,2072.5,0.0011]
[1773491742900,0.53460558,2072.6,2071.8,1.72940673]
[1773491743197,4.82540702,2072.8,2072.0,0.52275243]
[1773491743198,0.001,2072.8,2072.0,0.52275243]
[1773491743370,0.001,2072.8,2072.4,0.52275243]
[1773491743371,0.05159999,2072.8,2072.4,0.52275243]
[1773491743689,0.58620557,2072.8,2072.4,0.52275243]
[1773491744093,1.7923042,2072.8,2072.4,0.52275243]
[1773491745491,0.53460558,2072.7,2072.3,1.20638903]
[1773491745697,0.53460558,2072.6,2072.4,0.0022]
[1773491745872,0.53460558,2072.6,2072.3,0.0022]
[1773491747988,0.53460558,2072.6,2072.4,0.0022]
[1773491748183,0.53460558,2072.6,2072.3,0.0022]
[1773491749605,0.53460558,2072.6,2072.2,1.72915382]
[1773491749778,0.53460558,2072.6,2072.5,0.0011]
[1773491750099,0.53560558,2072.6,2072.5,0.0011]
[1773491750828,0.001,2072.6,2072.5,0.0011]
[1773491752104,0.001,2072.6,2072.5,0.53497188]
[1773491754397,0.001,2072.6,2072.5,0.0033]
[1773491754576,0.49095791,2072.6,2072.5,0.0033]
[1773491755477,0.001,2072.6,2072.5,0.0033]
[1773491759179,0.49095791,2072.6,2072.5,0.0033]
[1773491762510,0.49095791,2072.6,2072.0,0.0011]
[1773491762511,0.48995791,2072.5,2072.0,0.0011]
[1773491762711,0.48915791,2072.5,2072.0,0.0011]
[1773491763082,0.49095791,2072.4,2072.0,0.0011]
[1773491763519,0.49095791,2072.4,2072.3,0.0011]
[1773491763700,0.49095791,2072.4,2072.0,0.0011]
[1773491765626,0.48995791,2072.2,2072.0,0.0011]
[1773491767707,0.48995791,2072.2,2071.9,1.20660934]
[1773491767708,0.48995791,2072.3,2071.9,0.53531562]
[1773491767887,0.48995791,2072.3,2072.0,0.0482672]
[1773491768430,0.48995791,2072.3,2071.9,0.48704842]
[1773491768724,0.48995791,2072.3,2072.0,0.0482672]
[1773491769918,0.48995791,2072.2,2072.0,0.0482672]
[1773491771422,0.53822511,2072.2,2072.0,0.0482672]
[1773491771628,0.53822511,2072.2,2071.7,1.20669346]
[1773491771931,1.74469963,2072.2,2071.8,0.0482672]
[1773491772107,0.48995791,2072.1,2071.8,0.0482672]
[1773491772309,0.48995791,2072.1,2071.2,0.48672957]
[1773491772533,0.48995791,2071.8,2071.1,1.20708802]
[1773491772743,0.76402667,2071.9,2070.7,0.48665472]
[1773491772744,0.48995791,2071.6,2070.7,0.48665472]
[1773491772912,3.03674172,2072.2,2070.9,0.48665472]
[1773491772913,0.48995791,2071.8,2070.9,0.48665472]
[1773491773112,0.48995791,2071.8,2071.1,0.48665472]
[1773491773433,0.48995791,2072.1,2071.3,0.48665472]